[Event "CCT Chesscom Classic-D1 2024"]
[Site "Online"]
[Date "2024.05.11"]
[Round "2"]
[White "Lazavik, Denis"]
[Black "Carlsen, Magnus"]
[Result "1/2-1/2"]
[ECO "D31"]
[WhiteElo "2572"]
[BlackElo "2830"]
[Annotator "TA"]
[PlyCount "167"]
[EventDate "2024.05.08"]
[EventType "k.o."]
[EventCountry "NET"]
[SourceTitle "playchess.com"]
[Source "ChessBase"]
[SourceQuality "1"]
[TimeControl "600+2"]

{[%evp 9,167,21,29,30,25,26,23,29,21,16,21,23,15,18,21,12,20,0,0,0,32,54,36,35,38,28,20,27,25,20,37,0,0,0,0,0,0,0,0,0,0,-12,-20,-14,-18,-112,-125,-133,-138,-341,-352,-327,-73,-48,-77,-70,-108,-25,-81,-60,0,-118,0,0,152,139,103,-29998,-29976,-29997,-405,-412,-395,-412,-425,-422,-404,-411,-373,-358,-344,-335,0,-117,-47,-44,-18,-160,-140,-166,0,0,0,-25,0,0,0,0,0,0,0,0,0,0,0,0,0,0,0,0,0,0,0,0,0,-77,-31,-39,-44,-44,0,-77,-77,-77,-77,-77,-77,-77,-77,-84,-84,-84,-84,-84,-84,-84,-84,-84,-84,-84,-84,-84,-84,-84,-22,-84,-84,-84,-84,-84,-22,-84,-43,-84,-84,-84,-84,-84,-84,-84]} 1. d4 {[%emt 0:00:03]} d5 {[%emt 0:00:08]} 2. c4 {[%emt 0:00:01]} e6 {[%emt 0:00:01]} 3. Nf3 {[%emt 0:00:03]} a6 {[%emt 0:00:08]} 4. cxd5 {[%emt 0:00:03]} exd5 {[%emt 0:00:01]} 5. Nc3 {[%emt 0:00:00]} h6 {[%emt 0:00:02]} 6. Bf4 {[%emt 0:00:06]} Nf6 {[%emt 0:00:02]} 7. e3 {[%emt 0:00:03]} Bd6 {[%emt 0:00:02]} 8. Be5 {[%emt 0:00:13] White has an edge.} c6 {[%emt 0:00:09]} 9. Bd3 {[%emt 0:00:03]} O-O {[%emt 0:00:02]} 10. h3 {[%emt 0:00:16]} Re8 {[%emt 0:00:03]} 11. O-O {[%emt 0:00:34]} Bxe5 {[%emt 0:00:10]} 12. Nxe5 {[%emt 0:00:02]} c5 {[%emt 0:00:01]} 13. a4 {[%emt 0:01:06][%cal Ba2a4,Ba4a5][%mdl 32]} cxd4 {[%emt 0:02:18]} (13... Qa5 {seems wilder.} 14. Qf3 cxd4 15. b4 Qxb4 16. Nxd5 Qd6) 14. exd4 {[%emt 0:00:02]} Nc6 {[%emt 0:00:01]} 15. Nxc6 {[%emt 0:00:16]} bxc6 {[%emt 0:00:00]} 16. a5 {[%emt 0:00:04]} Rb8 {[%emt 0:00:02]} 17. Qd2 {[%emt 0:00:39]} Ne4 {[%emt 0:00:02]} 18. Nxe4 {[%emt 0:00:26]} dxe4 {[%emt 0:00:00]} 19. Bc4 {[%emt 0:00:00][%cal Oc4f7]} Qd6 {[%emt 0:00:32]} 20. Rfe1 {[%emt 0:00:21]} c5 {[%emt 0:00:07]} 21. d5 {[%emt 0:01:18]} Bd7 {[%emt 0:00:03]} 22. Rac1 {[%emt 0:00:15]} f5 {[%emt 0:00:09][%cal Bf7f5,Bf5f4][%mdl 32]} 23. Qc3 {[%emt 0:01:14]} f4 {[%emt 0:00:28]} 24. Bf1 {[%emt 0:00:03]} Rbc8 {[%emt 0:00:16]} 25. Qb3 {[%emt 0:00:50] [#]} e3 $1 {[%emt 0:01:58]} 26. fxe3 {[%emt 0:00:21]} f3 {[%emt 0:00:06]} 27. e4 {[%emt 0:00:18] [#]} (27. gxf3 $11 Qg3+ 28. Bg2) 27... f2+ $1 $17 {[%emt 0:01:09][%mdl 512]} 28. Kxf2 {[%emt 0:00:06]} Qh2 {[%emt 0:00:01]} 29. Qe3 $2 {[%emt 0:01:01]} (29. Bxa6 $2 Rf8+ 30. Ke2 Rb8 $19) (29. d6+ $17 Kh8 30. Be2 (30. Bxa6 $2 Rf8+ 31. Ke2 Rb8 $19) 30... Rf8+ 31. Bf3) 29... Rb8 $1 $19 {[%emt 0:00:02] White must now prevent ...Rf8+.} 30. b3 {[%emt 0:00:19][%cal Of2e2]} (30. Rxc5 $2 Rxb2+ 31. Re2 Rf8+ 32. Ke1 Rb1+ 33. Kd2 Rfxf1 $19 (33... Rbxf1 $2 34. Qd4 $19)) (30. Qxc5 Rf8+ (30... Rxb2+ $2 31. Rc2 $19) 31. Ke2 Rxb2+ 32. Rc2 Rxc2+ 33. Qxc2 Bb5+ (33... Bxh3 34. Kd1 $17) 34. Kd1 Bxf1 $19 (34... Rxf1 $2 35. Rxf1 Bxf1 36. Qc8+ Kf7 37. Qf5+ Kg8 38. Qxf1 $18)) 30... Rf8+ $2 {[%emt 0:00:14]} (30... Rb4 $1 $19 {has better winning chances.} 31. Rxc5 Rf8+ 32. Ke2 Qb8 (32... Bb5+ 33. Rxb5 Rxb5 34. Kd1 $11)) 31. Ke2 $17 {[%emt 0:00:02][%cal Oe2d2] [#]} c4 $1 {[%emt 0:00:02]} 32. bxc4 {[%emt 0:00:26]} (32. Rxc4 Bb5 33. Qd3 Bxc4 34. Qxc4 Qg3 $19) 32... Rb2+ {[%emt 0:00:15]} (32... Qe5 $5 33. Rc3 $8 Rf4 $11 (33... Rb2+ 34. Kd3 $11)) 33. Kd3 {[%emt 0:00:01]} Qe5 {[%emt 0:00:09]} 34. Rc3 {[%emt 0:00:04] Against Rb3} (34. Qd4 $2 Rd2+ 35. Kxd2 Qxd4+ 36. Bd3 Qb2+ 37. Rc2 Qb4+ 38. Rc3 Ba4 $19 (38... Qxa5 $2 39. e5 $19)) 34... Ba4 {[%emt 0:00:11]} (34... Rbf2 $1 $15 35. Be2 Rxg2) 35. Be2 {[%emt 0:00:10] [#]} (35. Qc1 $1 $11 Rff2 36. Re2 Rbxe2 37. Bxe2 Rxg2 38. Qf1 (38. Qe3 $2 Rg3 $19) 38... Rg3+ 39. Bf3) 35... Rf2 $3 $40 {[%emt 0:01:24][%mdl 640] White needs to defend precisely.} 36. Qc1 $1 $11 {[%emt 0:00:14]} (36. Qxf2 Bc2+ 37. Kd2 Bxe4+ 38. Kd1 Qxc3) 36... Rxg2 $2 {[%emt 0:00:14]} 37. Qxb2 $16 {[%emt 0:00:07]} Rg3+ {[%emt 0:00:01]} 38. Kd2 $2 {[%emt 0:00:02][%mdl 8192]} (38. Bf3 $16 Rxf3+ 39. Re3) 38... Qd4+ {[%emt 0:00:03]} 39. Bd3 {[%emt 0:00:03] [#]} Rxd3+ $1 {[%emt 0:00:01][%mdl 512]} 40. Rxd3 $19 {[%emt 0:00:02]} Qxb2+ {[%emt 0:00:00]} 41. Ke3 {[%emt 0:00:00]} Bc2 {[%emt 0:00:14]} 42. Re2 {[%emt 0:00:04][%cal Oe2c2]} Qc1+ {[%emt 0:00:01]} 43. Rdd2 {[%emt 0:00:01]} Qg1+ {[%emt 0:00:03]} (43... Bb3 44. d6 Qg1+ (44... Bxc4 45. d7 $15) 45. Kf3 Qf1+ (45... Bxc4 46. d7 $11) 46. Ke3 Qxh3+ (46... Bxc4 47. d7 $17) 47. Kd4) 44. Rf2 {[%emt 0:00:01]} Qe1+ {[%emt 0:00:03]} 45. Rfe2 {[%emt 0:00:01] [#]} Qg1+ {[%emt 0:00:03]} (45... Qc1 $1 $19 {And now ...Ba4 would win.} 46. d6 Ba4) 46. Rf2 $17 {[%emt 0:00:01] [#]} Ba4 {[%emt 0:00:19]} (46... Bb3 $1 $17 {[%cal Rb3c4]} 47. c5 Qg3+ 48. Kd4 Qb8 (48... Qxh3 49. c6 $11)) 47. c5 $15 {[%emt 0:00:00]} Qc1 {[%emt 0:00:05]} 48. c6 {[%emt 0:00:01]} (48. Kd4 $1 $11 {was the only way to keep the balance.}) 48... Qc5+ {[%emt 0:00:02]} 49. Kf3 {[%emt 0:00:01]} Bb5 $2 {[%emt 0:00:02]} (49... Qxa5 $19 {Strongly threatening ...Qc3+.} 50. Rd3 Qc5) 50. Rc2 $1 $11 {[%emt 0:00:07]} Qa3+ {[%emt 0:00:03]} 51. Kg2 {[%emt 0:00:01]} (51. Kf4 $5) 51... Bd3 {[%emt 0:00:01]} (51... Qxa5 52. c7 Bd7 53. c8=B (53. c8=R+ Bxc8 54. Rxc8+ Kh7 $11) 53... Bxc8 54. Rxc8+ Kh7 55. Re2 $16) 52. c7 {[%emt 0:00:03]} Bxe4+ {[%emt 0:00:01]} 53. Kh2 {[%emt 0:00:01]} Qd6+ {[%emt 0:00:02]} 54. Kg1 {[%emt 0:00:02]} Qg3+ {[%emt 0:00:00]} 55. Rg2 $1 {[%emt 0:00:04]} Qe3+ {[%emt 0:00:05]} (55... Bxg2 56. c8=Q+ (56. c8=B {leads to mate.} Be4+ 57. Kf1 Bd3+ 58. Re2 Qf3+ 59. Kg1 Qxe2 60. h4 Be4 61. Be6+ Kf8 62. Bh3 Qe1+ 63. Bf1 Qg3+) 56... Kh7 57. Qf5+ (57. Rxg2 Qe1+ 58. Kh2 Qe5+ 59. Rg3 Qe2+ 60. Kg1 Qe1+ 61. Kg2 Qe2+ 62. Kh1 Qe4+ 63. Rg2 Qe1+ 64. Kh2 Qe5+ 65. Rg3 Qe2+ 66. Kg1 Qe1+ 67. Kg2 Qe2+ 68. Kg1 $11) 57... Qg6 58. Qxg6+ Kxg6 59. Kxg2 h5 60. Re2 (60. Rc6+ Kf5 61. Rxa6 Ke5 62. d6 Kf6 63. Rb6 h4 64. a6 g5)) 56. Kh2 {[%emt 0:00:00] Some like it hot} Qf4+ {[%emt 0:00:02]} 57. Rg3 {[%emt 0:00:01]} Bf5 {[%emt 0:00:04][%cal Of5c8] ...Bc8! would now be deadly.} 58. c8=Q+ {[%emt 0:00:01]} Bxc8 {[%emt 0:00:00]} 59. Rxc8+ {[%emt 0:00:00][%mdl 4096] Endgame. KQ-KRR} Kh7 {[%emt 0:00:01]} 60. Rcc3 {[%emt 0:00:09]} Qd2+ {[%emt 0:00:02]} 61. Kg1 {[%emt 0:00:01]} Qxd5 {[%emt 0:00:03]} 62. Ra3 {[%emt 0:00:01]} (62. Rc7 $11 Qd4+ (62... Qxa5 63. Rcxg7+ Kh8 64. Rg8+ Kh7 65. R3g7#) 63. Kg2) 62... g5 {[%emt 0:00:00]} (62... h5 $17) 63. Rgd3 $1 $15 {[%emt 0:00:01]} Qc5+ {[%emt 0:00:02]} 64. Kg2 {[%emt 0:00:01]} Kg6 {[%emt 0:00:00]} 65. Rdc3 {[%emt 0:00:03]} (65. Rac3 $11 Qxa5 66. Rc6+ Kh5 67. Rdd6 Qa2+ 68. Kg1 Qb1+ 69. Kg2 Qe4+ 70. Kf2 Qf4+ 71. Kg2 Qe4+ 72. Kh2 Qe2+ 73. Kg1 Qe1+ 74. Kh2 Qe2+ 75. Kg1 Qe3+ 76. Kh2 Qf2+ 77. Kh1 Qf3+ 78. Kh2 Qe2+) 65... Qd5+ $17 {[%emt 0:00:01]} 66. Rf3 {[%emt 0:00:01]} Kh5 {[%emt 0:00:02]} 67. Kg3 {[%emt 0:00:05]} Qd4 {[%emt 0:00:01]} 68. Kg2 {[%emt 0:00:02] Prevents Qg1+.} Kh4 {[%emt 0:00:06]} 69. Rg3 {[%emt 0:00:03]} h5 {[%emt 0:00:02] Prevents Rg4+} 70. Rgf3 {[%emt 0:00:04]} g4 {[%emt 0:00:01]} 71. hxg4 {[%emt 0:00:01]} hxg4 {[%emt 0:00:00]} 72. Rg3 {[%emt 0:00:00]} Qd2+ {[%emt 0:00:03]} 73. Kf1 {[%emt 0:00:01]} Kg5 {[%emt 0:00:02]} 74. Rgd3 {[%emt 0:00:02]} Qc1+ {[%emt 0:00:02]} 75. Kg2 {[%emt 0:00:01]} Qb2+ {[%emt 0:00:02]} 76. Kf1 {[%emt 0:00:01]} Qb4 {[%emt 0:00:00]} (76... Qe5 $17) 77. Kg2 {[%emt 0:00:01]} (77. Rd5+ $1 $11 {remains equal.} Kh4 78. Rad3) 77... Kf4 {[%emt 0:00:02]} 78. Kf2 {[%emt 0:00:02]} Qb2+ {[%emt 0:00:01]} 79. Kf1 {[%emt 0:00:01]} Ke4 {[%emt 0:00:02]} (79... Qb5 $17) 80. Rg3 {[%emt 0:00:02]} (80. Kg1 $11 {keeps the balance.}) 80... Qc1+ {[%emt 0:00:02]} 81. Kf2 {[%emt 0:00:02]} Qd2+ {[%emt 0:00:01] Black is better.} 82. Kf1 {[%emt 0:00:01]} Kf4 {[%emt 0:00:01]} 83. Rgd3 {[%emt 0:00:01]} Qc1+ {[%emt 0:00:01]} 84. Kf2 {[%emt 0:00:01] Weighted Error Value: White=0.23 (precise) /Black=0.40.  Loses game:     	White=2     	---        Missed win:     	---       	Black=3      Mistake:       	White=7     	Black=7      Inaccurate:     	White=2     	Black=4      OK:         	White=25    	Black=32     Best:        	White=9     	Black=8      Strong:       	White=4     	Black=1      Brilliant:      	---       	Black=2} 1/2-1/2